bitfinex-derivatives/quotes_SOLF0:USTF0_20260116
["timestamp","ask_amount","ask_price","bid_price","bid_amount"]
[1768597763002,16.39121659,144.93,144.87,15.01878282]
[1768597763204,17.47046383,144.95,144.88,15.01878282]
[1768597763506,17.47046383,144.99,144.9,15.01878282]
[1768597763902,15.76357224,144.98,144.91,6.2134]
[1768597765609,21.97407224,144.98,144.91,6.2134]
[1768597771014,15.76357224,144.98,144.92,6.213]
[1768597771309,15.76357224,144.98,144.92,21.21911824]
[1768597771512,14.90619405,145.0,144.93,15.00611824]
[1768597771709,14.90619405,145.02,144.95,15.00611824]
[1768597772014,14.90619405,145.03,144.96,15.00611824]
[1768597772203,16.61280075,145.02,144.95,6.2115]
[1768597773714,16.61280075,145.02,144.92,98.3516067]
[1768597773715,14.90619405,145.04,144.96,16.71272494]
[1768597773906,16.61280075,145.04,144.96,16.71272494]
[1768597774103,16.61280075,145.04,144.96,15.00611824]
[1768597774910,16.61280075,145.04,144.97,6.2108]
[1768597775111,14.90619405,145.03,144.96,15.00611824]
[1768597775314,16.61280075,145.02,144.96,15.00611824]
[1768597775611,16.61280075,145.02,144.96,21.21741824]
[1768597775810,16.61280075,145.02,144.96,6.2113]
[1768597777211,14.90619405,145.02,144.96,6.2113]
[1768597782725,16.61280075,145.02,144.94,6.2119]
[1768597783822,14.90619405,145.01,144.94,6.2119]
[1768597784626,14.90619405,145.01,144.95,6.2117]
[1768597785117,14.90619405,145.01,144.93,16.71272494]
[1768597785925,14.90619405,145.01,144.96,6.2112]
[1768597786926,14.90619405,145.01,144.94,21.21831824]
[1768597788722,14.90619405,145.01,144.95,21.21791824]
[1768597789230,14.90619405,145.01,144.95,15.00611824]
[1768597789832,14.90619405,145.01,144.95,21.21781824]
[1768597790625,14.90619405,145.03,144.96,21.21721824]
[1768597790830,14.90619405,145.04,144.97,16.71272494]
[1768597791031,14.90619405,145.04,144.97,15.00611824]
[1768597791226,21.11479405,145.03,144.97,15.00611824]
[1768597791621,14.90619405,145.03,144.97,15.00611824]
[1768597792025,14.90619405,145.03,144.97,22.92362494]
[1768597795027,21.11459405,145.03,144.97,15.00611824]
[1768597795923,14.90619405,145.03,144.97,15.00611824]
[1768597797935,14.90619405,145.03,144.97,21.21701824]
[1768597800543,14.90619405,145.03,144.98,6.2104]
[1768597801932,14.90619405,145.03,144.96,6.2111]
[1768597802137,16.90273198,145.0,144.93,14.25789674]
[1768597803335,15.19612528,144.99,144.93,6.2126]
[1768597803534,15.19612528,144.99,144.91,26.9649905]
[1768597803734,15.19612528,144.99,144.92,14.25789674]
[1768597803938,15.19612528,144.99,144.94,6.212]
[1768597805942,1.7066067,145.0,144.94,6.212]
[1768597805943,1.7066067,145.0,144.95,6.2117]
[1768597806140,16.90273198,145.0,144.95,6.2117]
[1768597806542,15.19612528,145.0,144.95,6.2117]
[1768597811255,21.40482528,145.03,144.96,6.2113]
[1768597811557,22.28931645,145.02,144.96,20.46919674]
[1768597811749,16.90273198,145.02,144.96,20.46919674]
[1768597811950,5.38656197,145.01,144.96,20.46919674]
[1768597812256,16.90273198,145.02,144.96,20.46919674]
[1768597812456,5.38831545,145.01,144.96,20.46919674]
[1768597812657,16.90273198,145.02,144.96,20.46919674]
[1768597814152,16.90273198,145.02,144.96,6.2113]
[1768597814347,96.5453,145.08,144.96,14.25789674]
[1768597814348,16.90273198,145.04,144.96,14.25789674]
[1768597814553,16.90273198,145.04,144.97,14.25789674]
[1768597815858,16.90273198,145.04,144.98,6.2103]
[1768597815859,15.19612528,145.04,144.98,6.2103]
[1768597822154,15.19612528,145.04,144.97,14.25789674]
[1768597822763,15.19612528,145.04,144.95,29.99091045]
[1768597822964,14.66961119,145.03,144.95,28.28430375]
[1768597823268,14.66961119,144.99,144.92,28.28430375]
[1768597824764,14.66961119,144.99,144.93,6.2122]
[1768597825467,14.66961119,145.01,144.93,28.28430375]
[1768597825669,14.66961119,145.01,144.94,28.28430375]
[1768597826758,14.66961119,145.01,144.96,6.2113]
[1768597827166,16.37621789,145.03,144.95,15.57720999]
[1768597827372,14.66961119,145.03,144.95,28.28430375]
[1768597827767,16.37621789,145.03,144.95,28.28430375]
[1768597828875,16.37621789,145.03,144.97,6.2108]
[1768597829173,14.66961119,145.03,144.96,15.57720999]
[1768597829471,14.66961119,145.03,144.98,6.2105]
[1768597829677,14.42727807,145.05,144.97,14.81041258]
[1768597830279,14.42727807,145.05,145.0,6.2096]
[1768597833077,14.42727807,145.05,144.99,6.21]
[1768597833775,20.63397807,145.07,145.0,6.2096]
[1768597833973,14.42727807,145.06,145.0,6.2096]
[1768597834873,14.42727807,145.06,144.99,14.81041258]
[1768597834874,14.42727807,145.05,144.99,14.81041258]
[1768597835973,14.42727807,145.05,144.99,21.02041258]
[1768597846082,14.42727807,145.05,145.0,6.2096]
[1768597846783,20.63387807,145.07,145.0,21.02001258]
[1768597847984,14.42727807,145.07,145.0,14.81041258]
[1768597849784,14.42727807,145.07,145.03,6.2083]
[1768597851083,14.42727807,145.07,145.01,6.2089]
[1768597851484,14.42727807,145.07,145.0,14.81041258]
[1768597851979,14.42727807,145.07,145.02,6.2087]
[1768597858888,15.55645428,145.05,145.0,6.2092]
[1768597859091,15.55645428,145.05,144.98,14.27810763]
[1768597859688,15.55645428,145.05,145.0,6.2095]
[1768597861695,15.55645428,145.07,145.0,20.48760763]
[1768597861992,15.55645428,145.07,145.01,14.27810763]
[1768597866797,21.76315428,145.07,145.01,14.27810763]
[1768597867398,15.55645428,145.07,145.01,14.27810763]
[1768597869598,15.55645428,145.07,145.01,20.48720763]
[1768597870296,21.76265428,145.09,145.02,20.48680763]
[1768597870702,15.55645428,145.08,145.02,20.48680763]
[1768597872097,17.26129264,145.1,145.03,20.48630763]
[1768597874997,23.46669264,145.1,145.03,20.48630763]
[1768597875200,15.55645428,145.07,145.0,12.70709376]
[1768597875399,17.26129264,145.06,144.99,14.27810763]
[1768597875597,15.55645428,145.06,144.99,14.27810763]
[1768597876704,23.46749264,145.08,145.01,14.27810763]
[1768597877797,23.46749264,145.08,145.01,20.48730763]
[1768597878993,251.19633588,145.14,145.03,14.27810763]
[1768597878994,15.55645428,145.1,145.03,14.27810763]
[1768597879202,15.55645428,145.1,145.03,15.98294599]
[1768597879404,17.26129264,145.12,145.03,15.98294599]
[1768597879908,15.55645428,145.11,145.04,14.27810763]
[1768597881806,15.55645428,145.11,145.05,6.2075]
[1768597884214,21.76135428,145.11,145.04,20.48600763]
[1768597884512,15.23025881,145.1,145.04,20.48600763]
[1768597884809,15.23025881,145.1,145.04,14.27810763]
[1768597885908,15.23025881,145.1,145.04,20.48600763]
[1768597888214,15.23025881,145.14,145.06,15.15019083]
[1768597889809,15.23025881,145.14,145.07,6.2066]
[1768597892019,15.23025881,145.14,145.06,15.15019083]
[1768597892408,15.22838597,145.13,145.06,15.15019083]
[1768597894218,21.43248597,145.13,145.06,15.15019083]
[1768597895122,15.22838597,145.1,145.02,14.65223795]
[1768597896114,6.2049,145.12,145.03,16.35543952]
[1768597896419,15.22838597,145.13,145.05,16.35543952]
[1768597897426,15.22838597,145.13,145.05,14.65223795]
[1768597897626,16.93158754,145.13,145.05,14.65223795]
[1768597897924,16.93158754,145.11,145.05,14.65223795]
[1768597898314,15.22838597,145.11,145.05,14.65223795]
[1768597898515,21.43368597,145.11,145.05,14.65223795]
[1768597899218,6.2044,145.13,145.05,14.65223795]
[1768597899519,15.22838597,145.13,145.05,14.65223795]
[1768597900424,15.22838597,145.15,145.07,14.65223795]
[1768597900810,6.203,145.16,145.09,14.65223795]
[1768597901721,15.22838597,145.17,145.09,14.65223795]
[1768597901917,15.22838597,145.17,145.1,16.35543952]
[1768597903723,21.43088597,145.17,145.1,14.65223795]
[1768597903920,6.2029,145.16,145.1,14.65223795]
[1768597908026,15.22838597,145.17,145.1,14.65223795]
[1768597911624,16.93158754,145.17,145.1,14.65223795]
[1768597912225,14.36767166,145.16,145.08,14.93511209]
[1768597912422,16.07087323,145.13,145.06,14.93511209]
[1768597913228,16.07087323,145.13,145.06,21.14211209]
[1768597913229,14.36767166,145.13,145.06,21.14211209]
[1768597913616,14.36767166,145.13,145.06,14.93511209]
[1768597914929,14.36767166,145.13,145.06,21.14211209]
[1768597916530,14.36767166,145.13,145.04,21.14271209]
[1768597916531,16.07087323,145.12,145.04,21.14271209]
[1768597918929,16.07087323,145.12,145.05,6.2075]
[1768597920835,16.07087323,145.1,145.03,6.208]
[1768597921135,16.07087323,145.1,145.02,14.93511209]
[1768597922128,14.36767166,145.1,145.02,14.93511209]
[1768597922433,16.07087323,145.1,145.02,14.93511209]
[1768597922931,22.27627323,145.1,145.03,21.14341209]
[1768597925137,14.36767166,145.1,145.04,6.2079]
[1768597925439,16.07087323,145.1,145.04,6.2079]
[1768597928144,22.27627323,145.1,145.03,21.14351209]
[1768597928344,1.70320157,145.06,145.01,14.93511209]
[1768597932047,1.70320157,145.06,144.99,6.2101]
[1768597932048,16.07087323,145.06,144.99,14.93511209]
[1768597932243,1.70320157,145.04,144.99,14.93511209]
[1768597932548,16.07087323,145.04,144.96,14.93511209]
[1768597933848,6.2084,145.03,144.96,14.93511209]
[1768597934639,16.07087323,145.02,144.94,14.93511209]
[1768597934838,16.07087323,145.0,144.94,14.93511209]
[1768597935039,16.07087323,145.0,144.9,1.19946231]
[1768597935251,16.07087323,145.0,144.87,1.70320157]
[1768597935252,16.07087323,144.98,144.87,1.70320157]
[1768597935643,16.07087323,144.98,144.88,1.20089032]
[1768597936043,6.2115,144.96,144.88,1.20089032]
[1768597936244,16.07087323,145.01,144.88,1.20089032]
[1768597936450,16.07087323,145.01,144.91,1.70320157]
[1768597937057,16.07087323,145.01,144.92,14.93511209]
[1768597937251,6.2108,144.98,144.92,14.93511209]
[1768597937954,16.07087323,145.01,144.92,14.93511209]
[1768597938254,14.36767166,145.01,144.92,14.93511209]
[1768597938840,6.2102,144.99,144.92,14.93511209]
[1768597939047,14.36767166,145.01,144.92,14.93511209]
[1768597939355,14.36767166,145.01,144.92,16.63831366]
[1768597942351,16.06687416,144.98,144.92,14.93511209]
[1768597944556,14.36367259,144.98,144.92,14.93511209]
[1768597950364,14.36367259,144.98,144.92,21.14811209]
[1768597950567,14.36367259,144.98,144.92,14.93511209]
[1768597954667,20.57427259,144.98,144.92,14.93511209]
[1768597954968,22.28085938,144.98,144.92,14.93511209]
[1768597956267,15.15901777,144.96,144.9,14.95352003]
[1768597957872,21.37051777,144.96,144.9,14.95352003]
[1768597960968,6.2119,144.95,144.9,14.95352003]
[1768597963174,6.2122,144.94,144.9,14.95352003]
[1768597963977,96.6048,144.99,144.9,16.66010682]
[1768597964368,111.76381777,144.99,144.9,16.66010682]
[1768597965771,6.2115,144.96,144.9,16.66010682]
[1768597968082,6.2115,144.96,144.91,14.95352003]
[1768597968285,15.15901777,144.99,144.91,14.95352003]
[1768597969782,6.2114,144.96,144.91,14.95352003]
[1768597971575,6.2109,144.98,144.91,14.95352003]
[1768597971775,1.70658679,145.0,144.92,17.09362222]
[1768597972079,20.55676521,145.01,144.92,17.09362222]
[1768597972280,6.2096,145.01,144.94,6.2122]
[1768597972579,1.70658679,145.02,144.95,15.38703543]
[1768597972881,16.053752,145.02,144.95,15.38703543]
[1768597973180,6.2097,145.0,144.95,15.38703543]
[1768597982976,6.2092,145.01,144.95,15.38703543]
[1768597986891,14.34716521,145.02,144.95,15.38703543]
[1768597987995,14.34716521,145.02,144.95,21.59883543]
[1768597988895,14.34716521,145.02,144.96,15.38703543]
[1768597992893,14.34716521,145.02,144.96,21.59833543]
[1768597993895,16.053752,144.99,144.92,15.38703543]
[1768597994095,14.34716521,144.99,144.92,15.38703543]
[1768597994402,16.053752,144.99,144.92,15.38703543]
[1768597995593,14.34716521,144.99,144.92,15.38703543]
[1768597995788,1.70658679,144.98,144.93,6.2126]
[1768597995989,16.053752,144.98,144.92,15.38703543]
[1768597996600,16.053752,144.98,144.89,15.38703543]
[1768597996894,16.053752,144.98,144.9,21.60073543]
[1768597997302,16.053752,144.98,144.91,15.38703543]
[1768598000202,14.34716521,144.98,144.91,15.38703543]
[1768598000403,16.053752,144.98,144.91,15.38703543]
[1768598001502,22.264352,144.98,144.91,15.38703543]
[1768598003808,6.211,144.97,144.91,15.38703543]
[1768598004408,21.49503785,144.97,144.91,15.38703543]
[1768598005001,1.70658679,144.94,144.88,1.20089032]
[1768598005204,1.70658679,144.94,144.88,14.96453533]
[1768598005401,15.28403785,144.93,144.86,1.2009732]
[1768598005607,1.70658679,144.92,144.85,14.96453533]
[1768598006602,16.99062464,144.92,144.85,14.96453533]
[1768598006799,6.2136,144.91,144.85,14.96453533]
[1768598007911,7.92068679,144.9,144.85,14.96453533]
[1768598008307,16.99062464,144.92,144.85,14.96453533]
[1768598008796,15.28403785,144.92,144.85,14.96453533]
[1768598009807,21.49743785,144.92,144.85,14.96453533]
[1768598011707,1.70658679,144.93,144.86,14.81435264]
[1768598012801,1.70658679,144.93,144.87,14.81435264]
[1768598013703,21.20442348,144.94,144.87,14.81435264]
[1768598014613,1.70658679,144.95,144.87,22.73603943]
[1768598014914,14.99182348,144.96,144.88,14.81435264]
[1768598015820,14.99182348,144.99,144.89,16.52141108]
[1768598016121,16.69888192,144.99,144.89,16.52141108]
[1768598016503,14.99182348,144.99,144.89,16.52141108]
[1768598016717,14.99182348,144.99,144.91,16.52141108]
[1768598017320,21.20122348,145.01,144.93,16.52141108]
[1768598018912,21.20122348,145.01,144.93,22.73401108]
[1768598019113,21.20122348,145.01,144.93,21.02695264]
[1768598019314,14.99182348,145.05,144.97,14.81435264]
[1768598019616,14.99182348,145.05,144.98,16.52141108]
[1768598019916,14.99182348,145.05,144.99,14.81435264]
[1768598020116,14.99182348,145.07,144.99,14.81435264]
[1768598020318,14.99182348,145.07,145.0,21.02385264]
[1768598021818,14.99182348,145.07,145.0,22.73091108]
[1768598023522,14.99182348,145.07,145.01,21.02345264]
[1768598023814,16.69888192,145.07,144.98,277.34141108]
[1768598024211,14.99182348,145.07,145.0,14.81435264]
[1768598024420,16.69888192,145.09,145.0,16.52141108]
[1768598025919,16.69888192,145.09,145.02,6.2086]
[1768598027526,16.69888192,145.09,145.0,21.02365264]
[1768598027821,14.99182348,145.06,145.0,6.2093]
[1768598028026,14.99182348,145.06,144.98,281.84455264]
[1768598028521,14.99182348,145.06,144.98,275.63435264]
[1768598029026,14.99182348,145.06,144.99,6.2099]
[1768598029523,14.99182348,145.06,144.98,275.63435264]
[1768598030620,14.99182348,145.06,145.0,6.2095]
[1768598031320,20.7,145.2,145.07,15.53624683]
[1768598031526,1.70705844,145.15,145.03,96.5703]
[1768598031721,1.70705844,145.13,145.04,15.53624683]
[1768598031922,1.70705844,145.11,145.05,6.2073]
[1768598032127,262.46705844,145.11,145.05,6.2073]
[1768598032828,262.46705844,145.11,145.06,6.207]
[1768598033321,16.47281842,145.09,145.01,15.53624683]
[1768598033924,1.70705844,145.07,145.01,15.53624683]
[1768598034831,1.70705844,145.07,145.02,6.2085]
[1768598035129,1.70705844,145.07,145.01,15.53624683]
[1768598037030,1.70705844,145.07,145.01,21.74534683]
[1768598037733,14.76575998,145.04,144.98,6.2103]
[1768598037923,96.5325,145.1,144.98,6.2103]
[1768598037924,277.19281842,145.03,144.98,6.2103]
[1768598038128,277.19281842,145.03,144.95,15.53624683]
[1768598038728,277.19281842,145.03,144.97,6.2109]
[1768598038932,16.47281842,145.03,144.97,6.2109]
[1768598039136,260.72,145.02,144.97,6.2109]
[1768598041330,260.72,145.02,144.95,21.74774683]
[1768598042031,16.47281842,144.99,144.89,17.24330527]
[1768598042838,1.70705844,144.97,144.9,15.53624683]
[1768598043042,260.74,144.96,144.9,15.53624683]
[1768598043924,260.74,144.96,144.9,21.75004683]
[1768598044931,1.70705844,144.97,144.91,21.74944683]
[1768598045130,260.74,144.98,144.92,15.53624683]
[1768598045330,244.40379937,144.98,144.92,15.53624683]
[1768598045531,16.47281842,145.02,144.92,15.53624683]
[1768598045733,1.70705844,145.0,144.92,15.53624683]
[1768598046234,260.76,144.99,144.92,21.74894683]
[1768598049444,14.76575998,144.98,144.92,6.2127]
[1768598049634,14.76575998,144.98,144.89,15.53624683]
[1768598049827,14.76575998,144.98,144.89,17.24330527]
[1768598050838,14.76575998,144.98,144.91,6.2134]
[1768598051440,14.76575998,144.98,144.9,15.53624683]
[1768598051641,14.76575998,144.98,144.91,17.24330527]
[1768598051835,260.8,144.97,144.91,17.24330527]
[1768598052728,260.8,144.97,144.91,23.45650527]
[1768598054436,275.56575998,144.97,144.91,6.2132]
[1768598054631,14.76575998,144.96,144.91,6.2132]
[1768598057541,14.76575998,144.96,144.89,17.24330527]
[1768598057939,14.76575998,144.96,144.89,15.53624683]
[1768598058735,14.76575998,144.96,144.9,6.2139]
[1768598060342,6.2118,144.95,144.89,15.53624683]
[1768598061146,7.91885844,144.95,144.89,15.53624683]
[1768598062342,22.87999527,144.95,144.89,15.53624683]
[1768598062544,14.96113683,144.94,144.88,6.2147]
[1768598064347,1.70705844,144.91,144.84,16.11052198]
[1768598064545,260.86,144.9,144.84,16.11052198]
[1768598069152,22.88169527,144.91,144.84,22.32682198]
[1768598069457,260.88,144.89,144.84,22.32682198]
[1768598070655,21.17463683,144.91,144.85,6.216]
[1768598070862,260.9,144.9,144.85,6.216]
[1768598073758,14.96113683,144.91,144.85,6.216]
[1768598073958,260.92,144.89,144.85,6.216]
[1768598074765,1.70705844,144.92,144.84,1.20115974]
[1768598074957,260.92,144.91,144.86,21.73485095]
[1768598076270,21.259156,144.93,144.86,21.73485095]
[1768598076562,260.92,144.9,144.86,21.73485095]
[1768598076757,260.92,144.91,144.86,21.73485095]
[1768598077362,260.92,144.91,144.84,22.93681069]
[1768598078770,260.92,144.91,144.85,6.2159]
[1768598078972,16.75396655,144.92,144.85,6.2159]
[1768598079170,260.92,144.9,144.85,6.2159]
[1768598080265,260.92,144.89,144.85,6.2159]
[1768598081874,250.3491,144.89,144.86,6.2155]
[1768598082173,207.9544,144.89,144.86,6.2155]
[1768598082376,184.01140624,144.89,144.86,6.2155]
[1768598082575,151.20080624,144.89,144.86,6.2155]
[1768598082776,129.41840624,144.89,144.86,6.2155]
[1768598082977,117.13150624,144.89,144.86,6.2155]
[1768598083279,105.33260624,144.89,144.86,6.2155]
[1768598083571,73.46920624,144.89,144.86,6.2155]
[1768598083878,62.94930624,144.89,144.86,6.2155]
[1768598084071,52.56420624,144.89,144.86,6.2155]
[1768598084272,30.44010624,144.89,144.86,6.2155]
[1768598084476,19.17330624,144.89,144.86,6.2155]
[1768598084674,15.046256,144.91,144.86,6.2155]
[1768598087476,15.046256,144.89,144.83,6.2165]
[1768598087871,15.046256,144.89,144.81,16.72089729]
[1768598088771,15.046256,144.89,144.84,6.2164]
[1768598092585,1.70771055,144.88,144.84,6.2164]
[1768598096588,15.10067092,144.88,144.84,6.2164]
[1768598096791,16.80838147,144.88,144.84,6.2164]
[1768598099688,4.32427092,144.88,144.85,6.216]
[1768598099892,1.70771055,144.89,144.85,6.216]
[1768598100290,6.213,144.93,144.86,6.2156]
[1768598100491,147.53953306,144.99,144.84,14.14472214]
[1768598100786,1.70771055,144.91,144.84,14.14472214]
[1768598100993,1.70771055,144.92,144.84,14.14472214]
[1768598101195,1.70771055,144.87,144.81,97.91914634]
[1768598101389,1.70771055,144.87,144.81,15.34606848]
[1768598101892,16.80838147,144.87,144.81,1.20134634]
[1768598102200,16.80838147,144.85,144.79,14.14472214]
[1768598102901,16.80838147,144.85,144.81,6.2175]
[1768598105094,16.80838147,144.85,144.78,1.20159522]
[1768598106397,16.80838147,144.85,144.78,15.34631736]
[1768598106699,16.80838147,144.85,144.81,6.2177]
[1768598109500,16.80838147,144.85,144.77,14.14472214]
[1768598109892,1.70771055,144.83,144.77,14.14472214]
[1768598110199,16.80838147,144.83,144.76,1.2017612]
[1768598111198,16.80838147,144.83,144.76,15.34648334]
[1768598111995,16.80838147,144.81,144.76,1.2017612]
[1768598112194,15.10067092,144.81,144.73,14.14472214]
[1768598112594,16.80838147,144.81,144.73,14.14472214]
[1768598113096,16.80838147,144.81,144.73,20.36562214]
[1768598113302,16.80838147,144.81,144.72,1.2020933]
[1768598113502,16.80838147,144.81,144.71,15.85243269]
[1768598113692,16.80838147,144.81,144.71,14.14472214]
[1768598113996,16.80838147,144.81,144.71,15.85243269]
[1768598114896,16.80838147,144.81,144.74,6.2207]
[1768598115598,16.80838147,144.81,144.72,6.2214]
[1768598115599,15.10067092,144.8,144.72,6.2214]
[1768598116597,23.02668147,144.8,144.73,6.2212]
[1768598116899,15.10067092,144.79,144.73,6.2212]
[1768598117094,15.10067092,144.79,144.75,6.2202]
[1768598117294,15.10067092,144.81,144.73,14.14472214]
[1768598117896,16.80838147,144.81,144.73,14.14472214]
[1768598118097,16.80838147,144.81,144.76,6.2199]
[1768598119003,16.80838147,144.81,144.74,6.2204]
[1768598119601,16.80838147,144.81,144.75,6.2203]
[1768598119996,1.70771055,144.79,144.71,14.14472214]
[1768598120202,16.80838147,144.79,144.71,14.14472214]
[1768598121806,16.80838147,144.79,144.73,6.2212]
[1768598123005,15.10067092,144.79,144.73,6.2212]
[1768598123200,16.80838147,144.79,144.73,6.2212]
[1768598123905,15.10067092,144.79,144.71,15.85243269]
[1768598124103,15.10067092,144.79,144.72,15.1211779]
[1768598124900,15.10067092,144.79,144.75,6.2203]
[1768598126908,15.10067092,144.79,144.74,6.2208]
[1768598127209,15.305421,144.77,144.7,1.20221788]
[1768598127910,15.305421,144.77,144.71,6.2218]
[1768598128604,15.305421,144.76,144.69,15.1211779]
[1768598128798,17.01313155,144.76,144.69,15.1211779]
[1768598129213,23.23313155,144.76,144.69,21.3440779]
[1768598129407,15.305421,144.75,144.69,21.3440779]
[1768598130811,15.305421,144.75,144.7,6.2223]
[1768598136417,17.01313155,144.75,144.7,6.2223]
[1768598137321,15.305421,144.75,144.7,6.2223]
[1768598138819,15.305421,144.75,144.71,6.2221]
[1768598140721,267.4391,144.78,144.71,14.44624259]
[1768598140722,15.20941746,144.78,144.71,14.44624259]
[1768598140923,15.20941746,144.78,144.71,16.15834586]
[1768598141618,15.20941746,144.78,144.71,14.44624259]
[1768598141817,15.20941746,144.78,144.73,6.2211]
[1768598145924,15.20941746,144.77,144.71,6.2219]
[1768598147317,15.20941746,144.77,144.72,6.2216]
[1768598149836,15.20941746,144.77,144.71,6.2221]
[1768598150036,15.20941746,144.77,144.7,14.44624259]
[1768598151032,15.20941746,144.77,144.71,6.2221]
[1768598151633,15.20941746,144.77,144.72,6.2215]
[1768598164355,15.20941746,144.77,144.73,6.2209]
[1768598167449,15.20941746,144.77,144.71,21.91184291]
[1768598169062,15.20941746,144.77,144.72,6.2215]
[1768598180467,15.20941746,144.77,144.73,6.2212]
[1768598180669,15.55115787,144.79,144.71,15.69014291]
[1768598180863,15.55115787,144.79,144.72,15.69014291]
[1768598181870,15.55115787,144.79,144.74,6.2208]
[1768598184272,15.55115787,144.79,144.75,6.2203]
[1768598184465,16.98914265,144.81,144.75,6.2203]
[1768598185560,15.27703938,144.81,144.75,6.2203]
[1768598185766,15.27703938,144.83,144.77,14.95573996]
[1768598187767,15.27703938,144.83,144.79,6.2186]
[1768598193473,14.90070566,144.85,144.79,22.14340277]
[1768598194683,14.90070566,144.85,144.79,23.85550604]
[1768598195281,14.90070566,144.84,144.77,22.14390277]
[1768598195490,14.90070566,144.84,144.72,122.10354752]
[1768598195491,16.61280893,144.84,144.74,17.63690604]
[1768598196784,14.90070566,144.81,144.75,22.14510277]
[1768598197289,14.90070566,144.8,144.73,22.14570277]
[1768598203896,14.90070566,144.8,144.74,6.2208]
[1768598204190,14.90070566,144.8,144.74,22.14560277]
[1768598206880,14.90070566,144.8,144.74,15.92480277]
[1768598208088,14.90070566,144.82,144.74,17.63581642]
[1768598208394,14.90070566,144.82,144.76,22.14470277]
[1768598208792,14.90070566,144.84,144.78,1.71101365]
[1768598209391,21.11720566,144.84,144.78,1.71101365]
[1768598210995,6.217,144.83,144.76,17.63581642]
[1768598214804,6.2175,144.82,144.76,17.63581642]
[1768598215903,6.2175,144.82,144.77,1.71101365]
[1768598216202,6.2175,144.82,144.77,17.85315007]
[1768598218310,14.90070566,144.84,144.77,16.14213642]
[1768598218512,16.54571216,144.83,144.75,17.85315007]
[1768598220915,22.76311216,144.82,144.75,17.85315007]
[1768598221215,22.76311216,144.82,144.75,16.14213642]
[1768598222611,16.54571216,144.8,144.72,16.14213642]
[1768598222824,16.54571216,144.8,144.72,17.85315007]
[1768598223618,22.76391216,144.8,144.73,16.14213642]
[1768598224911,22.76391216,144.8,144.73,22.36333642]
[1768598225215,16.54571216,144.8,144.73,22.36333642]
[1768598227118,16.54571216,144.8,144.74,22.36293642]
[1768598227923,16.54571216,144.8,144.74,16.14213642]
[1768598230526,22.76411216,144.8,144.74,16.14213642]
[1768598233933,6.2187,144.79,144.74,16.14213642]
[1768598235628,6.2199,144.76,144.72,29.02358394]
[1768598235828,6.2199,144.76,144.72,16.14213642]
[1768598236034,1.71101365,144.79,144.72,16.14213642]
[1768598236229,18.25672581,144.81,144.72,16.14213642]
[1768598236930,6.2186,144.79,144.72,16.14213642]
[1768598237130,6.2186,144.79,144.73,16.14213642]
[1768598239331,6.2193,144.78,144.73,16.14213642]
[1768598241034,6.2195,144.77,144.73,16.14213642]
[1768598244935,22.76401216,144.8,144.73,16.14213642]
[1768598255745,15.78506101,144.79,144.73,16.14213642]
[1768598271252,15.78506101,144.79,144.73,22.36333642]
[1768598274353,22.00376101,144.79,144.73,22.36333642]
[1768598277855,22.00376101,144.79,144.73,16.14213642]
[1768598280857,15.65833618,144.77,144.71,34.57718108]
[1768598281058,15.65833618,144.77,144.7,261.24]
[1768598281260,17.36933263,144.77,144.7,261.24]
[1768598282748,6.2201,144.76,144.7,261.24]
[1768598282955,21.87843618,144.76,144.7,261.24]
[1768598283256,21.87843618,144.76,144.7,276.71383356]
[1768598283861,21.87843618,144.76,144.7,282.93633356]
[1768598285060,15.65833618,144.76,144.7,282.93633356]
[1768598291467,15.65833618,144.76,144.71,15.47383356]
[1768598294672,15.65833618,144.76,144.71,15.47383356]
[1768598297280,21.87833618,144.76,144.71,15.47383356]
[1768598298980,15.65833618,144.75,144.67,15.47383356]
[1768598299181,15.65833618,144.75,144.67,17.18483001]
[1768598299781,21.87903618,144.75,144.68,6.2233]
[1768598299985,21.87903618,144.75,144.68,21.69713356]
[1768598300279,15.65833618,144.75,144.68,21.69713356]
[1768598302579,15.40167074,144.74,144.68,21.69713356]
[1768598303678,21.62247074,144.74,144.68,15.47383356]
[1768598303983,15.40167074,144.73,144.66,22.17229436]
[1768598305080,15.40167074,144.75,144.68,15.94829436]
[1768598305582,15.40167074,144.77,144.71,15.94829436]
[1768598305779,15.40167074,144.79,144.71,17.65929081]
[1768598305974,15.40167074,144.79,144.73,15.94829436]
[1768598306784,15.40167074,144.79,144.73,22.16949436]
[1768598308788,15.40167074,144.79,144.74,15.94829436]
[1768598311384,21.5007355,144.82,144.75,15.39800466]
[1768598311686,15.2831355,144.81,144.75,15.39800466]
[1768598312786,15.2831355,144.81,144.75,21.61810466]
[1768598316476,15.2831355,144.81,144.75,15.39800466]
[1768598318682,1.71099645,144.83,144.72,1.71099645]
[1768598318683,15.2831355,144.83,144.77,15.39800466]